[Event "Titled Tuesday Blitz November 14 Early 2023"]
[White "Csonka, Balazs"]
[Black "Lund, Gunnar"]
[WhiteFideId "742910"]
[BlackFideId "1520814"]
[WhiteElo "2729"]
[BlackElo "2561"]
[Result "1-0"]
[Round "7"]
[TimeControl "180+1"]
[Date "2023.11.14"]
[WhiteClock "0:00:03"]
[BlackClock "0:00:55"]
[Board "66"]

1. d4 {[%clk 0:03:00]}  d6 {[%clk 0:02:59]} 2. e4 {[%clk 0:02:56]}  Nf6 {[%clk 0:02:59]} 3. Nc3 {[%clk 0:02:55]}  e5 {[%clk 0:03:00]} 4. Nge2 {[%clk 0:02:49]}  exd4 {[%clk 0:03:00]} 5. Nxd4 {[%clk 0:02:48]}  Be7 {[%clk 0:03:00]} 6. g3 {[%clk 0:02:46]}  O-O {[%clk 0:03:00]} 7. Bg2 {[%clk 0:02:47]}  Nbd7 {[%clk 0:02:59]} 8. O-O {[%clk 0:02:47]}  Nc5 {[%clk 0:03:00]} 9. a4 {[%clk 0:02:41]}  a5 {[%clk 0:03:00]} 10. b3 {[%clk 0:02:41]}  Re8 {[%clk 0:02:59]} 11. Bb2 {[%clk 0:02:38]}  Bf8 {[%clk 0:03:00]} 12. Re1 {[%clk 0:02:38]}  g6 {[%clk 0:03:00]} 13. Qd2 {[%clk 0:02:06]}  Bg7 {[%clk 0:03:00]} 14. h3 {[%clk 0:02:05]}  c6 {[%clk 0:02:59]} 15. Rad1 {[%clk 0:02:03]}  Qc7 {[%clk 0:02:55]} 16. Kh2 {[%clk 0:00:58]}  Bd7 {[%clk 0:02:53]} 17. f4 {[%clk 0:00:58]}  Rad8 {[%clk 0:02:49]} 18. Qf2 {[%clk 0:00:58]}  Bc8 {[%clk 0:02:45]} 19. Ba3 {[%clk 0:00:55]}  Nfd7 {[%clk 0:02:43]} 20. Nb1 {[%clk 0:00:52]}  Nb8 {[%clk 0:02:43]} 21. Nd2 {[%clk 0:00:49]}  Nba6 {[%clk 0:02:43]} 22. Nc4 {[%clk 0:00:42]}  Nb4 {[%clk 0:02:42]} 23. Qd2 {[%clk 0:00:30]}  Bxd4 {[%clk 0:01:37]} 24. Bxb4 {[%clk 0:00:29]}  axb4 {[%clk 0:01:38]} 25. Qxd4 {[%clk 0:00:28]}  Re6 {[%clk 0:01:15]} 26. f5 {[%clk 0:00:21]}  Ree8 {[%clk 0:01:14]} 27. Nxd6 {[%clk 0:00:17]}  b6 {[%clk 0:01:08]} 28. Nxe8 {[%clk 0:00:16]}  Rxe8 {[%clk 0:01:09]} 29. Qd6 {[%clk 0:00:13]}  Qxd6 {[%clk 0:01:06]} 30. Rxd6 {[%clk 0:00:14]}  gxf5 {[%clk 0:01:07]} 31. Rxc6 {[%clk 0:00:12]}  fxe4 {[%clk 0:01:05]} 32. Rxb6 {[%clk 0:00:13]}  Bf5 {[%clk 0:01:03]} 33. Rxb4 {[%clk 0:00:12]}  Rc8 {[%clk 0:01:04]} 34. Rc4 {[%clk 0:00:12]}  Be6 {[%clk 0:01:00]} 35. Rc3 {[%clk 0:00:12]}  f5 {[%clk 0:01:01]} 36. b4 {[%clk 0:00:10]}  Nxa4 {[%clk 0:01:01]} 37. Rxc8+ {[%clk 0:00:10]}  Bxc8 {[%clk 0:01:02]} 38. g4 {[%clk 0:00:11]}  fxg4 {[%clk 0:00:59]} 39. Rxe4 {[%clk 0:00:10]}  gxh3 {[%clk 0:00:58]} 40. Re8+ {[%clk 0:00:10]}  Kf7 {[%clk 0:00:58]} 41. Rxc8 {[%clk 0:00:10]}  hxg2 {[%clk 0:00:59]} 42. Kxg2 {[%clk 0:00:10]}  Nb6 {[%clk 0:01:00]} 43. Rc6 {[%clk 0:00:09]}  Nd5 {[%clk 0:01:00]} 44. b5 {[%clk 0:00:08]}  Ke7 {[%clk 0:01:00]} 45. c4 {[%clk 0:00:06]}  Nb4 {[%clk 0:00:59]} 46. Rc7+ {[%clk 0:00:06]}  Kd8 {[%clk 0:00:59]} 47. b6 {[%clk 0:00:05]}  Na6 {[%clk 0:01:00]} 48. Rxh7 {[%clk 0:00:05]}  Kc8 {[%clk 0:01:01]} 49. Kf3 {[%clk 0:00:05]}  Nc5 {[%clk 0:01:01]} 50. Ke3 {[%clk 0:00:05]}  Ne6 {[%clk 0:01:00]} 51. Rh6 {[%clk 0:00:04]}  Ng5 {[%clk 0:00:58]} 52. Kd4 {[%clk 0:00:03]}  Nf7 {[%clk 0:00:57]} 53. Rf6 {[%clk 0:00:02]}  Ng5 {[%clk 0:00:57]} 54. Kd5 {[%clk 0:00:02]}  Kb8 {[%clk 0:00:57]} 55. c5 {[%clk 0:00:03]}  Nh7 {[%clk 0:00:57]} 56. Rf7 {[%clk 0:00:02]}  Ng5 {[%clk 0:00:57]} 57. Rf8+ {[%clk 0:00:02]}  Kb7 {[%clk 0:00:58]} 58. Kc4 {[%clk 0:00:03]}  Ne4 {[%clk 0:00:58]} 59. Rf7+ {[%clk 0:00:03]}  Kc8 {[%clk 0:00:58]} 60. Rc7+ {[%clk 0:00:03]}  Kb8 {[%clk 0:00:58]} 61. Kb5 {[%clk 0:00:03]}  Nc3+ {[%clk 0:00:58]} 62. Kc6 {[%clk 0:00:04]}  Ne4 {[%clk 0:00:57]} 63. Re7 {[%clk 0:00:03]}  Nf6 {[%clk 0:00:57]} 64. Re6 {[%clk 0:00:04]}  Nd7 {[%clk 0:00:55]} 65. Re8# {[%clk 0:00:03]} 1-0


[Site "https://www.chess.com"]

[Event "Titled Tuesday Blitz November 14 Early 2023"]
[White "Reprintsev, Alexander"]
[Black "Tristan, Leonardo"]
[WhiteFideId "14100541"]
[BlackFideId "113816"]
[WhiteElo "2552"]
[BlackElo "2721"]
[Result "0-1"]
[Round "7"]
[TimeControl "180+1"]
[Date "2023.11.14"]
[WhiteClock "0:00:13"]
[BlackClock "0:00:08"]
[Board "68"]

1. e4 {[%clk 0:03:00]}  d5 {[%clk 0:03:00]} 2. exd5 {[%clk 0:03:00]}  Qxd5 {[%clk 0:03:00]} 3. Nc3 {[%clk 0:02:58]}  Qa5 {[%clk 0:03:01]} 4. b4 {[%clk 0:02:54]}  Qxb4 {[%clk 0:03:00]} 5. Rb1 {[%clk 0:02:54]}  Qd6 {[%clk 0:03:00]} 6. Nf3 {[%clk 0:02:54]}  Nf6 {[%clk 0:03:01]} 7. d4 {[%clk 0:02:51]}  e6 {[%clk 0:03:00]} 8. Ne5 {[%clk 0:02:50]}  Be7 {[%clk 0:02:58]} 9. Bf4 {[%clk 0:02:50]}  Qd8 {[%clk 0:02:58]} 10. Bd3 {[%clk 0:02:48]}  Nbd7 {[%clk 0:02:44]} 11. Qf3 {[%clk 0:02:44]}  Nxe5 {[%clk 0:02:31]} 12. Bxe5 {[%clk 0:02:32]}  c6 {[%clk 0:02:16]} 13. O-O {[%clk 0:02:30]}  O-O {[%clk 0:02:15]} 14. Rb3 {[%clk 0:02:28]}  Nd5 {[%clk 0:01:40]} 15. Bxh7+ {[%clk 0:02:16]}  Kxh7 {[%clk 0:01:39]} 16. Qh5+ {[%clk 0:02:15]}  Kg8 {[%clk 0:01:39]} 17. Ne4 {[%clk 0:02:16]}  f6 {[%clk 0:00:59]} 18. Rh3 {[%clk 0:01:49]}  fxe5 {[%clk 0:00:52]} 19. Qh7+ {[%clk 0:01:46]}  Kf7 {[%clk 0:00:52]} 20. Qh5+ {[%clk 0:01:44]}  g6 {[%clk 0:00:50]} 21. Qh7+ {[%clk 0:01:41]}  Ke8 {[%clk 0:00:50]} 22. Qxg6+ {[%clk 0:01:41]}  Kd7 {[%clk 0:00:50]} 23. dxe5 {[%clk 0:01:38]}  Nf4 {[%clk 0:00:40]} 24. Rd1+ {[%clk 0:01:35]}  Kc7 {[%clk 0:00:40]} 25. Rxd8 {[%clk 0:01:28]}  Nxg6 {[%clk 0:00:40]} 26. Rxf8 {[%clk 0:01:04]}  Bxf8 {[%clk 0:00:36]} 27. f4 {[%clk 0:00:57]}  Nxf4 {[%clk 0:00:35]} 28. Rf3 {[%clk 0:00:57]}  Bh6 {[%clk 0:00:30]} 29. Rh3 {[%clk 0:00:57]}  Ne2+ {[%clk 0:00:25]} 30. Kf2 {[%clk 0:00:57]}  Bf4 {[%clk 0:00:25]} 31. Kxe2 {[%clk 0:00:47]}  Bxe5 {[%clk 0:00:25]} 32. Rh5 {[%clk 0:00:45]}  Bb2 {[%clk 0:00:20]} 33. c3 {[%clk 0:00:45]}  e5 {[%clk 0:00:16]} 34. Rh7+ {[%clk 0:00:44]}  Kb6 {[%clk 0:00:15]} 35. Rf7 {[%clk 0:00:30]}  Be6 {[%clk 0:00:13]} 36. Re7 {[%clk 0:00:27]}  Bc4+ {[%clk 0:00:10]} 37. Kd2 {[%clk 0:00:27]}  Rd8+ {[%clk 0:00:11]} 38. Kc2 {[%clk 0:00:26]}  Bd3+ {[%clk 0:00:10]} 39. Kxb2 {[%clk 0:00:26]}  Bxe4 {[%clk 0:00:10]} 40. g4 {[%clk 0:00:26]}  Rd2+ {[%clk 0:00:10]} 41. Ka3 {[%clk 0:00:25]}  Rxh2 {[%clk 0:00:07]} 42. Rxe5 {[%clk 0:00:23]}  Bd5 {[%clk 0:00:08]} 43. c4 {[%clk 0:00:14]}  Bxc4 {[%clk 0:00:08]} 44. Kb4 {[%clk 0:00:13]}  Bxa2 {[%clk 0:00:08]} 0-1


[Site "https://www.chess.com"]

[Event "Titled Tuesday Blitz November 14 Early 2023"]
[White "Martinez Ramirez, Lennis"]
[Black "Chernomordik, Pavel"]
[WhiteFideId "3509079"]
[BlackFideId "2804530"]
[WhiteElo "2699"]
[BlackElo "2523"]
[Result "0-1"]
[Round "7"]
[TimeControl "180+1"]
[Date "2023.11.14"]
[WhiteClock "0:01:10"]
[BlackClock "0:00:19"]
[Board "71"]

1. e4 {[%clk 0:03:00]}  g6 {[%clk 0:03:00]} 2. d4 {[%clk 0:03:00]}  Bg7 {[%clk 0:02:59]} 3. Nc3 {[%clk 0:03:01]}  d6 {[%clk 0:02:59]} 4. Bg5 {[%clk 0:02:59]}  h6 {[%clk 0:02:57]} 5. Be3 {[%clk 0:02:59]}  a6 {[%clk 0:02:57]} 6. Qd2 {[%clk 0:02:56]}  b5 {[%clk 0:02:57]} 7. Bd3 {[%clk 0:02:56]}  Bb7 {[%clk 0:02:56]} 8. a4 {[%clk 0:02:54]}  b4 {[%clk 0:02:55]} 9. Nce2 {[%clk 0:02:54]}  a5 {[%clk 0:02:54]} 10. Ng3 {[%clk 0:02:53]}  Nd7 {[%clk 0:02:50]} 11. f4 {[%clk 0:02:49]}  c5 {[%clk 0:02:44]} 12. c3 {[%clk 0:02:48]}  bxc3 {[%clk 0:02:43]} 13. bxc3 {[%clk 0:02:48]}  Qc7 {[%clk 0:02:34]} 14. Nf3 {[%clk 0:02:46]}  Nb6 {[%clk 0:02:25]} 15. d5 {[%clk 0:02:42]}  Nf6 {[%clk 0:02:20]} 16. Bb5+ {[%clk 0:02:40]}  Nbd7 {[%clk 0:02:20]} 17. c4 {[%clk 0:02:38]}  Nxe4 {[%clk 0:02:15]} 18. Nxe4 {[%clk 0:02:37]}  Bxa1 {[%clk 0:02:15]} 19. f5 {[%clk 0:02:29]}  Bg7 {[%clk 0:02:07]} 20. fxg6 {[%clk 0:02:25]}  fxg6 {[%clk 0:02:06]} 21. Nh4 {[%clk 0:02:26]}  O-O {[%clk 0:01:52]} 22. Bg5 {[%clk 0:02:21]}  hxg5 {[%clk 0:01:50]} 23. Qxg5 {[%clk 0:02:17]}  Ne5 {[%clk 0:01:48]} 24. Nxg6 {[%clk 0:02:14]}  Nxg6 {[%clk 0:01:29]} 25. Qxg6 {[%clk 0:02:15]}  Bc8 {[%clk 0:01:30]} 26. Rf1 {[%clk 0:01:53]}  Qd8 {[%clk 0:01:15]} 27. Ng5 {[%clk 0:01:38]}  Rxf1+ {[%clk 0:01:14]} 28. Ke2 {[%clk 0:01:38]}  Rf6 {[%clk 0:01:03]} 29. Qh7+ {[%clk 0:01:35]}  Kf8 {[%clk 0:01:03]} 30. Qh5 {[%clk 0:01:35]}  Bf5 {[%clk 0:00:52]} 31. g4 {[%clk 0:01:32]}  Bg6 {[%clk 0:00:49]} 32. Qh3 {[%clk 0:01:29]}  Kg8 {[%clk 0:00:45]} 33. Qe3 {[%clk 0:01:22]}  Qf8 {[%clk 0:00:39]} 34. h4 {[%clk 0:01:22]}  e5 {[%clk 0:00:33]} 35. dxe6 {[%clk 0:01:22]}  Qe7 {[%clk 0:00:32]} 36. h5 {[%clk 0:01:20]}  Bb1 {[%clk 0:00:25]} 37. Bc6 {[%clk 0:01:17]}  Raf8 {[%clk 0:00:25]} 38. Bd5 {[%clk 0:01:17]}  Rf2+ {[%clk 0:00:24]} 39. Ke1 {[%clk 0:01:12]}  Rf1+ {[%clk 0:00:20]} 40. Kd2 {[%clk 0:01:13]}  R8f2+ {[%clk 0:00:20]} 41. Qxf2 {[%clk 0:01:09]}  Rxf2+ {[%clk 0:00:20]} 42. Ke3 {[%clk 0:01:10]}  Bd4# {[%clk 0:00:19]} 0-1


[Site "https://www.chess.com"]

[Event "Titled Tuesday Blitz November 14 Early 2023"]
[White "Kanyamarala, Tarun"]
[Black "Danielyan, Vahe"]
[WhiteFideId "45004714"]
[BlackFideId "13304828"]
[WhiteElo "2504"]
[BlackElo "2697"]
[Result "0-1"]
[Round "7"]
[TimeControl "180+1"]
[Date "2023.11.14"]
[WhiteClock "0:00:07"]
[BlackClock "0:00:14"]
[Board "73"]

1. d4 {[%clk 0:03:00]}  Nf6 {[%clk 0:02:55]} 2. c4 {[%clk 0:03:00]}  g6 {[%clk 0:02:54]} 3. Nc3 {[%clk 0:02:58]}  Bg7 {[%clk 0:02:54]} 4. e4 {[%clk 0:02:59]}  d6 {[%clk 0:02:54]} 5. Be2 {[%clk 0:02:54]}  Nbd7 {[%clk 0:02:51]} 6. Be3 {[%clk 0:02:47]}  e5 {[%clk 0:02:50]} 7. d5 {[%clk 0:02:45]}  Nc5 {[%clk 0:02:49]} 8. Qc2 {[%clk 0:02:40]}  a5 {[%clk 0:02:49]} 9. Nf3 {[%clk 0:02:24]}  O-O {[%clk 0:02:41]} 10. Nd2 {[%clk 0:02:23]}  Ng4 {[%clk 0:02:39]} 11. Bxg4 {[%clk 0:02:23]}  Bxg4 {[%clk 0:02:40]} 12. f3 {[%clk 0:02:23]}  Bd7 {[%clk 0:02:40]} 13. O-O {[%clk 0:02:09]}  f5 {[%clk 0:02:39]} 14. exf5 {[%clk 0:02:06]}  gxf5 {[%clk 0:02:38]} 15. Rae1 {[%clk 0:02:03]}  b6 {[%clk 0:02:37]} 16. Ne2 {[%clk 0:01:56]}  Qe8 {[%clk 0:02:36]} 17. Nc1 {[%clk 0:01:42]}  Qg6 {[%clk 0:02:35]} 18. Bf2 {[%clk 0:01:39]}  Rae8 {[%clk 0:02:33]} 19. b3 {[%clk 0:01:37]}  e4 {[%clk 0:02:27]} 20. Bxc5 {[%clk 0:01:31]}  bxc5 {[%clk 0:02:26]} 21. fxe4 {[%clk 0:01:29]}  fxe4 {[%clk 0:02:19]} 22. Rxf8+ {[%clk 0:01:20]}  Rxf8 {[%clk 0:02:18]} 23. Ne2 {[%clk 0:01:09]}  Bf5 {[%clk 0:01:04]} 24. Nf1 {[%clk 0:01:01]}  Bd4+ {[%clk 0:00:50]} 25. Kh1 {[%clk 0:00:49]}  e3 {[%clk 0:00:48]} 26. Qd1 {[%clk 0:00:46]}  Be4 {[%clk 0:00:48]} 27. Nfg3 {[%clk 0:00:41]}  Rf2 {[%clk 0:00:48]} 28. Rg1 {[%clk 0:00:41]}  Bd3 {[%clk 0:00:39]} 29. Nc1 {[%clk 0:00:33]}  Bc2 {[%clk 0:00:28]} 30. Qe1 {[%clk 0:00:32]}  h5 {[%clk 0:00:18]} 31. Qxa5 {[%clk 0:00:11]}  h4 {[%clk 0:00:17]} 32. Nge2 {[%clk 0:00:09]}  h3 {[%clk 0:00:15]} 33. gxh3 {[%clk 0:00:07]}  Be4+ {[%clk 0:00:14]} 0-1


[Site "https://www.chess.com"]

[Event "Titled Tuesday Blitz November 14 Early 2023"]
[White "Hasangatin, Ramil"]
[Black "Makaraci, Tunahan"]
[WhiteFideId "4122160"]
[BlackFideId "6356559"]
[WhiteElo "2679"]
[BlackElo "2477"]
[Result "1-0"]
[Round "7"]
[TimeControl "180+1"]
[Date "2023.11.14"]
[WhiteClock "0:01:32"]
[BlackClock "0:00:00"]
[Board "74"]

1. e4 {[%clk 0:03:00]}  c5 {[%clk 0:02:59]} 2. Nf3 {[%clk 0:03:01]}  Nc6 {[%clk 0:02:59]} 3. Bb5 {[%clk 0:03:01]}  d6 {[%clk 0:02:59]} 4. d4 {[%clk 0:03:01]}  cxd4 {[%clk 0:02:59]} 5. Qxd4 {[%clk 0:03:02]}  Bd7 {[%clk 0:02:59]} 6. Bxc6 {[%clk 0:03:02]}  Bxc6 {[%clk 0:03:00]} 7. Nc3 {[%clk 0:03:03]}  Nf6 {[%clk 0:03:01]} 8. Bg5 {[%clk 0:03:03]}  e6 {[%clk 0:03:01]} 9. O-O-O {[%clk 0:03:03]}  Be7 {[%clk 0:03:02]} 10. Rhe1 {[%clk 0:03:03]}  O-O {[%clk 0:03:01]} 11. Qd2 {[%clk 0:03:03]}  h6 {[%clk 0:03:00]} 12. Bf4 {[%clk 0:03:02]}  e5 {[%clk 0:02:53]} 13. Bg3 {[%clk 0:02:57]}  b5 {[%clk 0:02:40]} 14. Bh4 {[%clk 0:02:54]}  b4 {[%clk 0:02:22]} 15. Bxf6 {[%clk 0:02:54]}  Bxf6 {[%clk 0:02:06]} 16. Nd5 {[%clk 0:02:52]}  Bxd5 {[%clk 0:02:04]} 17. Qxd5 {[%clk 0:02:52]}  Qb6 {[%clk 0:01:53]} 18. Re2 {[%clk 0:02:46]}  Rfd8 {[%clk 0:01:52]} 19. Kb1 {[%clk 0:02:42]}  Rac8 {[%clk 0:01:51]} 20. Qb3 {[%clk 0:02:34]}  a5 {[%clk 0:01:46]} 21. Rd5 {[%clk 0:02:32]}  Rc5 {[%clk 0:01:45]} 22. Red2 {[%clk 0:02:28]}  Rxd5 {[%clk 0:01:41]} 23. Qxd5 {[%clk 0:02:28]}  a4 {[%clk 0:01:39]} 24. Qd3 {[%clk 0:02:19]}  Qc6 {[%clk 0:01:29]} 25. Qd5 {[%clk 0:02:15]}  Qb6 {[%clk 0:01:28]} 26. Qd3 {[%clk 0:02:14]}  Qc6 {[%clk 0:01:28]} 27. h4 {[%clk 0:02:13]}  h5 {[%clk 0:01:24]} 28. g3 {[%clk 0:02:12]}  g6 {[%clk 0:01:23]} 29. Nh2 {[%clk 0:02:05]}  Kg7 {[%clk 0:01:14]} 30. Nf1 {[%clk 0:02:05]}  b3 {[%clk 0:00:47]} 31. Ne3 {[%clk 0:02:05]}  bxa2+ {[%clk 0:00:46]} 32. Kxa2 {[%clk 0:02:04]}  Be7 {[%clk 0:00:39]} 33. Nd5 {[%clk 0:02:04]}  Bf8 {[%clk 0:00:39]} 34. Qc3 {[%clk 0:01:55]}  Qb5 {[%clk 0:00:20]} 35. Qb4 {[%clk 0:01:50]}  Qc6 {[%clk 0:00:15]} 36. c4 {[%clk 0:01:35]}  Rc8 {[%clk 0:00:14]} 37. Rc2 {[%clk 0:01:35]}  Ra8 {[%clk 0:00:06]} 38. Qb5 {[%clk 0:01:33]}  Qxb5 {[%clk 0:00:01]} 39. cxb5 {[%clk 0:01:32]}  Rb8 {[%clk 0:00:02]} 40. b6 {[%clk 0:01:33]}  f5 {[%clk 0:00:02]} 41. Rc7+ {[%clk 0:01:31]}  Kh6 {[%clk 0:00:00]} 42. b7 {[%clk 0:01:32]} 1-0


[Site "https://www.chess.com"]

[Event "Titled Tuesday Blitz November 14 Early 2023"]
[White "Arhan_Anand"]
[Black "Remolar Gallen, Jose"]
[BlackFideId "2215187"]
[WhiteElo "2656"]
[BlackElo "2457"]
[Result "0-1"]
[Round "7"]
[TimeControl "180+1"]
[Date "2023.11.14"]
[WhiteClock "0:01:37"]
[BlackClock "0:00:38"]
[Board "75"]

1. b3 {[%clk 0:03:00]}  e5 {[%clk 0:02:58]} 2. Bb2 {[%clk 0:03:00]}  Nc6 {[%clk 0:02:58]} 3. e3 {[%clk 0:03:00]}  Nf6 {[%clk 0:02:58]} 4. c4 {[%clk 0:03:00]}  d5 {[%clk 0:02:56]} 5. cxd5 {[%clk 0:03:01]}  Nxd5 {[%clk 0:02:57]} 6. Nf3 {[%clk 0:02:58]}  Bd6 {[%clk 0:02:56]} 7. a3 {[%clk 0:02:45]}  O-O {[%clk 0:02:55]} 8. Qc2 {[%clk 0:02:45]}  Bg4 {[%clk 0:02:52]} 9. Bd3 {[%clk 0:02:44]}  h6 {[%clk 0:02:46]} 10. Nc3 {[%clk 0:02:42]}  Nxc3 {[%clk 0:02:45]} 11. Bxc3 {[%clk 0:02:43]}  Qd7 {[%clk 0:02:36]} 12. h3 {[%clk 0:02:39]}  Be6 {[%clk 0:02:32]} 13. O-O {[%clk 0:02:32]}  f5 {[%clk 0:02:31]} 14. Bb5 {[%clk 0:02:31]}  a6 {[%clk 0:02:25]} 15. Bxc6 {[%clk 0:02:26]}  Qxc6 {[%clk 0:02:26]} 16. Qb2 {[%clk 0:02:26]}  Bd5 {[%clk 0:01:52]} 17. Bxe5 {[%clk 0:02:24]}  Bxf3 {[%clk 0:01:51]} 18. Bxd6 {[%clk 0:02:17]}  cxd6 {[%clk 0:00:47]} 19. Rfc1 {[%clk 0:02:16]}  Qd5 {[%clk 0:00:47]} 20. Rc7 {[%clk 0:02:13]}  Rf6 {[%clk 0:00:43]} 21. gxf3 {[%clk 0:01:53]}  Rg6+ {[%clk 0:00:40]} 22. Kh2 {[%clk 0:01:37]}  Qxf3 {[%clk 0:00:38]} 0-1


[Site "https://www.chess.com"]

[Event "Titled Tuesday Blitz November 14 Early 2023"]
[White "Begunov, Konstantin"]
[Black "Hristodoulou, Panagiotis"]
[WhiteFideId "4118510"]
[BlackFideId "4214340"]
[WhiteElo "2450"]
[BlackElo "2644"]
[Result "0-1"]
[Round "7"]
[TimeControl "180+1"]
[Date "2023.11.14"]
[WhiteClock "0:00:03"]
[BlackClock "0:00:06"]
[Board "76"]

1. d4 {[%clk 0:03:00]}  Nf6 {[%clk 0:02:59]} 2. c4 {[%clk 0:03:01]}  e6 {[%clk 0:02:59]} 3. Nf3 {[%clk 0:03:01]}  Bb4+ {[%clk 0:02:56]} 4. Nbd2 {[%clk 0:03:01]}  b6 {[%clk 0:02:56]} 5. a3 {[%clk 0:03:01]}  Bxd2+ {[%clk 0:02:43]} 6. Bxd2 {[%clk 0:03:02]}  Bb7 {[%clk 0:02:42]} 7. Bg5 {[%clk 0:03:02]}  d6 {[%clk 0:02:35]} 8. e3 {[%clk 0:03:01]}  Nbd7 {[%clk 0:02:33]} 9. Be2 {[%clk 0:03:01]}  h6 {[%clk 0:02:32]} 10. Bh4 {[%clk 0:03:00]}  O-O {[%clk 0:02:31]} 11. O-O {[%clk 0:03:00]}  Qe8 {[%clk 0:02:28]} 12. b4 {[%clk 0:02:58]}  e5 {[%clk 0:02:27]} 13. Qc2 {[%clk 0:02:54]}  Be4 {[%clk 0:02:13]} 14. Qc3 {[%clk 0:02:50]}  Qe6 {[%clk 0:02:09]} 15. d5 {[%clk 0:02:40]}  Qe8 {[%clk 0:01:55]} 16. Nd2 {[%clk 0:02:40]}  Bh7 {[%clk 0:01:53]} 17. f3 {[%clk 0:02:35]}  Rc8 {[%clk 0:01:25]} 18. a4 {[%clk 0:02:32]}  c6 {[%clk 0:01:23]} 19. dxc6 {[%clk 0:02:31]}  Rxc6 {[%clk 0:01:24]} 20. Rac1 {[%clk 0:02:10]}  d5 {[%clk 0:01:07]} 21. Qb3 {[%clk 0:02:04]}  d4 {[%clk 0:01:05]} 22. exd4 {[%clk 0:01:56]}  exd4 {[%clk 0:01:04]} 23. Rfe1 {[%clk 0:01:56]}  Re6 {[%clk 0:00:52]} 24. Bd3 {[%clk 0:01:54]}  Re3 {[%clk 0:00:50]} 25. Bxh7+ {[%clk 0:01:46]}  Nxh7 {[%clk 0:00:48]} 26. Qb2 {[%clk 0:01:18]}  Qe5 {[%clk 0:00:31]} 27. Bf2 {[%clk 0:01:12]}  Rxe1+ {[%clk 0:00:14]} 28. Rxe1 {[%clk 0:01:13]}  Qf5 {[%clk 0:00:11]} 29. Qxd4 {[%clk 0:01:10]}  Ndf6 {[%clk 0:00:09]} 30. c5 {[%clk 0:01:03]}  bxc5 {[%clk 0:00:09]} 31. bxc5 {[%clk 0:01:04]}  Ng5 {[%clk 0:00:09]} 32. Rc1 {[%clk 0:00:56]}  Ne6 {[%clk 0:00:07]} 33. Qc4 {[%clk 0:00:48]}  Rd8 {[%clk 0:00:05]} 34. Ne4 {[%clk 0:00:47]}  Nxe4 {[%clk 0:00:05]} 35. Qxe4 {[%clk 0:00:47]}  Qg5 {[%clk 0:00:04]} 36. Be3 {[%clk 0:00:44]}  Qh5 {[%clk 0:00:05]} 37. c6 {[%clk 0:00:42]}  Qa5 {[%clk 0:00:05]} 38. Qc4 {[%clk 0:00:36]}  Rc8 {[%clk 0:00:03]} 39. Qb5 {[%clk 0:00:34]}  Qd8 {[%clk 0:00:04]} 40. Bxa7 {[%clk 0:00:32]}  Qd2 {[%clk 0:00:04]} 41. Qc4 {[%clk 0:00:18]}  Nf4 {[%clk 0:00:04]} 42. Qc2 {[%clk 0:00:04]}  Qxc1+ {[%clk 0:00:04]} 43. Qxc1 {[%clk 0:00:03]}  Ne2+ {[%clk 0:00:04]} 44. Kf2 {[%clk 0:00:04]}  Nxc1 {[%clk 0:00:05]} 45. a5 {[%clk 0:00:04]}  Rxc6 {[%clk 0:00:06]} 46. Be3 {[%clk 0:00:05]}  Nb3 {[%clk 0:00:05]} 47. Bb6 {[%clk 0:00:04]}  Rc4 {[%clk 0:00:05]} 48. Ke3 {[%clk 0:00:04]}  Ra4 {[%clk 0:00:05]} 49. Kd3 {[%clk 0:00:04]}  Nxa5 {[%clk 0:00:05]} 50. Bd4 {[%clk 0:00:04]}  Nc6 {[%clk 0:00:06]} 51. Kc3 {[%clk 0:00:03]}  Rxd4 {[%clk 0:00:06]} 0-1


[Site "https://www.chess.com"]

[Event "Titled Tuesday Blitz November 14 Early 2023"]
[White "Adla, Diego"]
[Black "Jamal-Jamal-Jamal"]
[WhiteFideId "100072"]
[WhiteElo "2642"]
[BlackElo "2429"]
[Result "0-1"]
[Round "7"]
[TimeControl "180+1"]
[Date "2023.11.14"]
[WhiteClock "0:00:13"]
[BlackClock "0:00:51"]
[Board "77"]

1. e4 {[%clk 0:03:00]}  c5 {[%clk 0:03:00]} 2. Nf3 {[%clk 0:02:58]}  e6 {[%clk 0:02:59]} 3. d3 {[%clk 0:02:57]}  Nc6 {[%clk 0:02:59]} 4. g3 {[%clk 0:02:56]}  Nf6 {[%clk 0:02:58]} 5. Bg2 {[%clk 0:02:55]}  d6 {[%clk 0:02:58]} 6. O-O {[%clk 0:02:48]}  Be7 {[%clk 0:02:58]} 7. c3 {[%clk 0:02:46]}  O-O {[%clk 0:02:58]} 8. a4 {[%clk 0:02:40]}  Bd7 {[%clk 0:02:57]} 9. Na3 {[%clk 0:02:36]}  Rc8 {[%clk 0:02:56]} 10. Re1 {[%clk 0:02:34]}  Qc7 {[%clk 0:02:56]} 11. Nc4 {[%clk 0:02:29]}  a6 {[%clk 0:02:51]} 12. a5 {[%clk 0:02:27]}  Ne5 {[%clk 0:02:48]} 13. Nfxe5 {[%clk 0:02:23]}  dxe5 {[%clk 0:02:48]} 14. f4 {[%clk 0:02:23]}  exf4 {[%clk 0:02:45]} 15. Bxf4 {[%clk 0:02:23]}  Qd8 {[%clk 0:02:45]} 16. Nb6 {[%clk 0:01:49]}  Rc6 {[%clk 0:02:34]} 17. e5 {[%clk 0:01:49]}  Nd5 {[%clk 0:02:28]} 18. Nxd5 {[%clk 0:01:48]}  exd5 {[%clk 0:02:28]} 19. Bxd5 {[%clk 0:01:49]}  Bg4 {[%clk 0:02:28]} 20. Bf3 {[%clk 0:01:47]}  Bxf3 {[%clk 0:02:27]} 21. Qxf3 {[%clk 0:01:47]}  Qd7 {[%clk 0:02:25]} 22. Rad1 {[%clk 0:01:45]}  Rd8 {[%clk 0:02:23]} 23. d4 {[%clk 0:01:45]}  cxd4 {[%clk 0:02:23]} 24. Rxd4 {[%clk 0:01:45]}  Bc5 {[%clk 0:02:21]} 25. Rd1 {[%clk 0:01:41]}  Bxd4+ {[%clk 0:02:19]} 26. Rxd4 {[%clk 0:01:41]}  Qe7 {[%clk 0:02:07]} 27. h4 {[%clk 0:01:36]}  h6 {[%clk 0:02:05]} 28. Qe4 {[%clk 0:01:31]}  Rcc8 {[%clk 0:01:58]} 29. Qd3 {[%clk 0:01:17]}  Qc5 {[%clk 0:01:50]} 30. Kh1 {[%clk 0:01:10]}  Qxa5 {[%clk 0:01:49]} 31. e6 {[%clk 0:01:02]}  fxe6 {[%clk 0:01:48]} 32. Qe4 {[%clk 0:01:01]}  Qf5 {[%clk 0:01:38]} 33. Qxb7 {[%clk 0:01:00]}  Kh7 {[%clk 0:01:24]} 34. Rd7 {[%clk 0:00:46]}  Rxd7 {[%clk 0:01:19]} 35. Qxd7 {[%clk 0:00:46]}  Qd5+ {[%clk 0:01:12]} 36. Qxd5 {[%clk 0:00:46]}  exd5 {[%clk 0:01:13]} 37. Be5 {[%clk 0:00:46]}  Kg6 {[%clk 0:01:12]} 38. b4 {[%clk 0:00:46]}  Re8 {[%clk 0:01:06]} 39. Bd4 {[%clk 0:00:45]}  Re7 {[%clk 0:01:05]} 40. Kg2 {[%clk 0:00:45]}  Kf5 {[%clk 0:01:05]} 41. Kf3 {[%clk 0:00:46]}  h5 {[%clk 0:01:05]} 42. Bc5 {[%clk 0:00:41]}  Re8 {[%clk 0:01:01]} 43. Bd4 {[%clk 0:00:41]}  g6 {[%clk 0:01:02]} 44. Bg7 {[%clk 0:00:41]}  Re4 {[%clk 0:01:00]} 45. Bd4 {[%clk 0:00:39]}  Ke6 {[%clk 0:01:01]} 46. Bg7 {[%clk 0:00:38]}  Kd7 {[%clk 0:01:01]} 47. Bh8 {[%clk 0:00:24]}  Kc6 {[%clk 0:01:01]} 48. Bg7 {[%clk 0:00:25]}  Kb5 {[%clk 0:01:01]} 49. Bf6 {[%clk 0:00:25]}  Kc4 {[%clk 0:01:00]} 50. Bg7 {[%clk 0:00:25]}  Rg4 {[%clk 0:00:58]} 51. Be5 {[%clk 0:00:24]}  g5 {[%clk 0:00:57]} 52. hxg5 {[%clk 0:00:24]}  Rxg5 {[%clk 0:00:58]} 53. Bh8 {[%clk 0:00:23]}  Rg4 {[%clk 0:00:56]} 54. Be5 {[%clk 0:00:22]}  Re4 {[%clk 0:00:57]} 55. Bg7 {[%clk 0:00:21]}  h4 {[%clk 0:00:56]} 56. gxh4 {[%clk 0:00:21]}  Rxh4 {[%clk 0:00:55]} 57. Ke3 {[%clk 0:00:21]}  Rh3+ {[%clk 0:00:55]} 58. Kd2 {[%clk 0:00:21]}  Rh2+ {[%clk 0:00:54]} 59. Kc1 {[%clk 0:00:19]}  Kb3 {[%clk 0:00:51]} 60. Bd4 {[%clk 0:00:18]}  Rc2+ {[%clk 0:00:51]} 61. Kb1 {[%clk 0:00:13]}  Rxc3 {[%clk 0:00:51]} 0-1


[Site "https://www.chess.com"]